bitfinex/quotes_ETHUSD_20250213
["timestamp","ask_amount","ask_price","bid_price","bid_amount"]
[1739473731913,0.321,2664.3,2663.9,3.7538]
[1739473732479,0.321,2664.3,2663.9,6.75388]
[1739473732633,4.07433,2664.3,2663.8,6.75397]
[1739473733533,3.75377,2664.0,2663.6,3.0]
[1739473734082,3.75377,2664.0,2663.5,3.75436]
[1739473734284,3.75377,2664.0,2663.6,3.0]
[1739473734466,6.01651,2664.2,2663.7,3.75415]
[1739473734467,3.75351,2664.2,2663.7,3.75415]
[1739473734833,3.75361,2664.1,2663.7,3.75415]
[1739473735236,4.536096,2664.3,2663.7,3.75415]
[1739473735528,4.07248,2664.2,2663.6,3.0]
[1739473735762,3.75377,2664.0,2663.4,4.58273]
[1739473736104,0.7118226,2664.2,2663.4,0.8282]
[1739473736384,0.319,2663.9,2663.8,3.75394]
[1739473736882,0.319,2663.9,2663.7,3.0]
[1739473737084,0.319,2663.9,2663.7,6.75417]
[1739473737430,0.319,2663.9,2663.7,3.0]
[1739473737658,4.07298,2663.9,2663.4,0.8282]
[1739473737881,4.07298,2663.9,2663.5,3.0]
[1739473738240,0.319,2663.9,2663.5,6.75445]
[1739473738452,0.319,2663.9,2663.5,3.0]
[1739473738453,4.07302,2663.9,2663.5,3.0]
[1739473738780,0.318,2663.8,2663.7,3.0]
[1739473739987,0.318,2663.8,2663.7,6.75417]
[1739473740491,0.10400707,2663.8,2663.7,3.0]
[1739473740668,0.10400707,2663.8,2663.7,6.75417]
[1739473741193,3.75313,2664.5,2664.0,3.75367]
[1739473741337,0.317,2664.3,2664.2,6.75334]
[1739473741536,0.317,2664.4,2664.2,6.75334]
[1739473741732,0.317,2664.4,2664.2,3.0]
[1739473742584,0.317,2664.4,2664.2,6.75345]
[1739473742957,0.10333368,2664.3,2664.2,3.0]
[1739473743338,0.10333368,2664.3,2663.0,4.22148053]
[1739473743535,3.75343,2664.3,2663.2,3.75488]
[1739473743778,3.75369,2664.1,2663.5,3.0]
[1739473744106,3.75369,2664.1,2663.6,3.75426]
[1739473744277,0.10363494,2664.0,2663.7,3.0]
[1739473744645,2.263,2664.8,2663.8,3.75399]
[1739473744815,0.76884319,2665.5,2664.5,0.8202]
[1739473745131,3.75188,2665.4,2664.8,3.75254]
[1739473745282,3.7522,2665.1,2663.7,3.75408]
[1739473745487,3.7525,2664.9,2664.3,3.75321]
[1739473745690,6.01527,2665.1,2664.6,3.0]
[1739473745896,3.75249,2664.9,2664.6,3.0]
[1739473746112,4.353797,2665.1,2664.6,3.75281]
[1739473746326,0.0075,2665.4,2664.8,3.75248]
[1739473746327,0.317,2665.0,2664.8,3.75248]
[1739473746634,0.11659938,2665.7,2665.2,3.75193]
[1739473746779,0.318,2665.6,2665.3,3.75178]
[1739473746979,0.11659938,2665.7,2665.3,3.75178]
[1739473746980,0.43459938,2665.7,2665.3,3.75184]
[1739473747453,4.97968432,2665.7,2665.1,3.75208]
[1739473747619,1.22830432,2665.7,2665.3,3.75191]
[1739473747826,4.97976432,2665.7,2665.1,3.75208]
[1739473748007,4.97875432,2665.7,2665.1,3.75208]
[1739473748391,3.75178,2665.4,2665.0,3.7904]
[1739473748589,3.75157,2665.6,2665.0,3.0]
[1739473748806,0.49788743,2665.6,2665.0,3.0]
[1739473749024,3.75196,2665.3,2664.8,3.0]
[1739473749332,3.7518,2665.4,2664.9,6.75247]
[1739473749512,3.752,2665.3,2664.8,3.0]
[1739473749826,3.75172,2665.5,2664.9,3.75246]
[1739473750029,0.41853194,2665.5,2664.7,0.8047]
[1739473750237,3.75235,2665.0,2664.2,0.8326]
[1739473750398,3.75235,2665.0,2664.4,3.75311]
[1739473750597,3.75213,2665.2,2664.8,3.0]
[1739473750931,3.75222,2665.1,2664.6,3.0]
[1739473751347,4.127343,2665.2,2664.6,6.75289]
[1739473751510,4.127343,2665.2,2664.6,3.0]
[1739473751711,4.127343,2665.2,2664.7,3.75274]
[1739473752049,4.127343,2665.2,2664.8,3.0]
[1739473752247,3.7523,2665.1,2664.6,6.75289]
[1739473752411,3.7523,2665.1,2664.4,3.0]
[1739473752412,3.7525,2664.9,2664.4,3.0]
[1739473752953,3.75285,2664.7,2664.2,0.8326]
[1739473753111,3.75285,2664.7,2664.1,3.75351]
[1739473753311,3.75285,2664.7,2664.2,3.75341]
[1739473753646,3.7529,2664.6,2664.1,3.75351]
[1739473753943,3.75281,2664.7,2664.2,3.75346]
[1739473754148,3.75281,2664.7,2664.3,3.0]
[1739473754345,3.75294,2664.6,2664.0,3.75364]
[1739473754547,3.75313,2664.5,2663.9,4.54579]
[1739473754767,3.75313,2664.5,2663.9,8.29958]
[1739473755028,3.75276,2664.7,2663.7,4.49606948]
[1739473755181,3.75314,2664.5,2663.8,3.75402]
[1739473755386,3.75314,2664.5,2663.6,0.7796]
[1739473755592,3.75314,2664.5,2664.0,3.75373]
[1739473755933,3.75356,2664.2,2663.6,4.53383]
[1739473756139,3.75332,2664.4,2663.8,3.75394]
[1739473756348,3.75332,2664.4,2663.9,6.75381]
[1739473756879,3.75337,2664.3,2663.9,3.0]
[1739473757061,3.75355,2664.2,2663.7,3.0]
[1739473757500,3.75319,2664.4,2663.6,0.7796]
[1739473757646,3.75349,2664.2,2663.7,6.75406]
[1739473758003,0.10012188,2664.1,2663.7,6.75406]
[1739473758852,0.10012188,2664.1,2663.8,3.0]
[1739473760301,3.85379188,2664.1,2663.7,3.0]
[1739473760458,3.75377,2664.0,2663.6,0.7796]
[1739473760663,3.75377,2664.0,2663.7,3.0]
[1739473761062,0.10012188,2663.9,2663.5,3.75437]
[1739473761397,0.41312188,2663.9,2663.5,3.75444]
[1739473762395,4.16707188,2663.9,2663.4,6.75452]
[1739473762614,4.16703188,2663.9,2663.3,4.54263]
[1739473762815,3.7544,2663.6,2663.1,3.75499]
[1739473763016,3.75456,2663.5,2663.0,4.56089]
[1739473763324,3.75456,2663.5,2663.1,3.0]
[1739473763468,0.09989112,2663.4,2663.1,3.75502]
[1739473763822,0.09989112,2663.4,2663.2,6.75478]
[1739473764265,3.75432,2663.6,2663.2,6.75478]
[1739473764708,0.09989112,2663.5,2663.2,6.75478]
[1739473765518,0.41189112,2663.5,2663.4,3.75459]
[1739473765705,0.41189112,2663.5,2663.4,6.75459]
[1739473767044,0.41189112,2663.5,2663.4,3.0]
[1739473767825,4.16634112,2663.5,2663.4,3.0]
[1739473768425,3.75468,2663.4,2662.9,3.75526]
[1739473768569,3.75468,2663.4,2662.8,3.75544]
[1739473768570,3.75459,2663.4,2662.8,3.75544]
[1739473768768,3.85362046,2663.3,2662.9,3.0]
[1739473769011,3.85362046,2663.3,2662.7,0.7934]
[1739473769199,3.75488,2663.2,2662.8,3.75538]
[1739473769398,3.75488,2663.2,2662.9,3.0]
[1739473770139,0.09879046,2663.1,2662.9,3.0]
[1739473770539,0.09879046,2663.1,2662.9,6.75518]
[1739473770842,3.75469,2663.4,2662.9,6.75518]
[1739473771041,0.09879046,2663.0,2662.9,6.75518]
[1739473771241,3.75469,2663.4,2662.9,6.75518]
[1739473771446,0.09879046,2663.0,2662.9,6.75518]
[1739473771593,3.63523263,2664.1,2663.1,3.0]
[1739473771797,0.602369,2664.4,2663.8,3.75392]
[1739473771798,0.31,2664.0,2663.8,3.75392]
[1739473772295,0.31,2664.0,2663.9,3.75389]
[1739473772718,2.263,2664.4,2663.9,3.75389]
[1739473772928,4.0634,2664.3,2663.7,3.0]
[1739473773107,4.16191518,2664.3,2663.4,0.7615]
[1739473773294,4.16191518,2664.3,2663.8,3.75393]
[1739473773511,0.40851518,2664.3,2663.8,3.75393]
[1739473773949,0.40851518,2664.3,2663.9,3.75379]
[1739473774100,0.40851518,2664.3,2664.0,3.75368]
[1739473774301,0.40851518,2664.3,2663.5,0.451617]
[1739473774544,0.40851518,2664.3,2663.6,0.81231204]
[1739473774743,0.09851518,2664.3,2664.2,3.75347]
[1739473774949,0.09851518,2664.3,2664.2,6.75347]
[1739473775131,0.31,2664.5,2664.3,3.0]
[1739473775451,0.31,2664.5,2664.3,6.75324]
[1739473775810,0.31,2664.5,2664.3,3.75333]
[1739473776012,6.01522,2665.1,2664.6,3.75286]
[1739473776207,3.5862543,2665.0,2664.6,3.75286]
[1739473776415,3.75248,2664.9,2664.2,3.75342]
[1739473776644,3.75248,2664.9,2664.3,3.0]
[1739473776826,3.75264,2664.8,2664.3,3.0]
[1739473777305,3.75277,2664.7,2664.2,3.75334]
[1739473777509,3.75313,2664.5,2663.9,3.0]
[1739473777712,3.75292,2664.6,2663.8,0.7689]
[1739473777936,3.75292,2664.6,2664.0,3.75365]
[1739473778165,3.75307,2664.5,2664.1,3.0]
[1739473778342,3.75307,2664.5,2664.0,3.0]
[1739473778857,3.75342,2664.3,2663.8,3.7689]
[1739473779011,3.75368,2664.1,2663.5,3.75438]
[1739473779205,3.75368,2664.1,2663.4,0.8207]
[1739473779206,0.309,2664.1,2663.4,0.8207]
[1739473779405,3.75375,2664.0,2663.3,3.75464]
[1739473779608,3.75406,2663.8,2663.3,3.75464]
[1739473779847,2.669275,2664.0,2663.1,4.54312]
[1739473780155,3.75453,2663.5,2663.1,0.7882]
[1739473780361,3.75436,2663.6,2663.0,3.75507]
[1739473780564,3.75436,2663.6,2662.8,0.8065]
[1739473780710,0.375436,2663.5,2662.8,3.8065]
[1739473780912,3.75483,2663.3,2662.9,3.0]
[1739473781226,0.309,2663.2,2662.7,3.75548]
[1739473781437,0.309,2663.2,2662.8,3.75542]
[1739473781656,0.309,2663.2,2662.5,4.58171]
[1739473781857,3.75524,2663.0,2662.5,4.58171]
[1739473782166,3.75554,2662.8,2662.2,4.55043]
[1739473782521,3.7553,2662.9,2662.2,4.55043]
[1739473782826,3.7553,2662.9,2662.3,3.75606]
[1739473783266,4.161614,2663.0,2662.5,3.0]
[1739473783474,4.06388,2663.2,2662.6,3.75563]
[1739473783658,0.309,2663.2,2662.6,3.75563]
[1739473783840,0.309,2663.2,2662.6,7.51125]
[1739473784176,0.309,2663.2,2662.6,3.75562]
[1739473784527,0.309,2663.2,2662.8,3.75541]
[1739473784839,0.309,2663.2,2662.6,3.75562]
[1739473785084,6.392966,2663.5,2662.4,0.02752505]
[1739473785244,0.308,2663.1,2662.6,3.0]
[1739473785440,0.308,2663.1,2662.6,3.75571]
[1739473785620,4.06313,2663.1,2662.5,6.75586]
[1739473785816,3.75516,2663.0,2662.3,3.0]
[1739473786036,3.75545,2662.8,2662.3,3.0]
[1739473786823,4.161473,2663.0,2662.3,3.0]
[1739473787227,3.75532,2662.9,2662.5,3.0]
[1739473787525,3.75547,2662.8,2662.3,3.0]
[1739473787839,3.7556,2662.7,2662.3,3.0]
[1739473788040,3.75558,2662.7,2662.0,3.7565]
[1739473788243,0.09745826,2662.6,2662.2,3.75616]
[1739473788446,0.09745826,2662.6,2662.1,3.0]
[1739473788667,3.85329826,2662.6,2662.0,3.75648]
[1739473788967,0.09745826,2662.5,2662.2,3.0]
[1739473789171,3.75573,2662.6,2662.2,3.0]
[1739473789469,0.09745826,2662.5,2662.0,3.0]
[1739473789636,0.09745826,2662.5,2661.9,3.7806]
[1739473789843,3.75601,2662.4,2661.9,4.53722]
[1739473790067,3.85346826,2662.4,2661.9,4.53722]
[1739473790254,3.85346826,2662.4,2661.8,3.0]
[1739473790575,3.85346826,2662.4,2661.6,0.7728]
[1739473790576,3.7562,2662.3,2661.6,0.7728]
[1739473790771,0.306,2662.2,2661.8,3.75679]
[1739473790977,0.09745826,2662.1,2661.8,3.75679]
[1739473791141,0.09745826,2662.1,2662.0,6.75657]
[1739473791523,0.306,2662.2,2662.1,6.75643]
[1739473791727,0.40345826,2662.2,2662.0,3.0]
[1739473791976,0.306,2662.2,2662.0,3.0]
[1739473792126,0.09745826,2662.1,2662.0,3.0]
[1739473792622,0.09745826,2662.1,2661.5,3.0]
[1739473792790,0.09745826,2662.1,2662.0,6.75657]
[1739473793074,0.306,2662.3,2662.2,3.75629]
[1739473793582,0.09745826,2662.3,2662.2,7.55953551]
[1739473793796,0.306,2663.7,2662.3,3.0]
[1739473794090,0.712012,2663.7,2663.3,3.75464]
[1739473794234,0.08975317,2663.6,2663.5,3.75445]
[1739473794430,0.08975317,2663.6,2662.9,0.7721]
[1739473794636,0.08975317,2663.6,2663.5,3.75445]
[1739473794941,0.08975317,2663.6,2663.5,6.75445]
[1739473795136,12.24154774,2664.5,2663.6,3.0]
[1739473795137,0.306,2663.8,2663.6,3.0]
[1739473795338,0.306,2663.8,2663.2,3.75484]
[1739473795536,0.306,2663.8,2663.3,3.75466]
[1739473795735,3.7542,2663.7,2663.2,3.0]
[1739473795987,3.7542,2663.7,2662.9,4.52731]
[1739473795988,3.75446,2663.5,2662.9,0.7721]
[1739473796279,3.75435,2663.6,2663.0,3.0]
[1739473796484,3.7542,2663.7,2663.0,3.0]
[1739473796778,0.712,2663.8,2663.0,3.0]
[1739473796952,3.75469,2663.4,2663.0,3.0]
[1739473797840,3.75438,2663.6,2663.0,3.0]
[1739473798341,3.75462,2663.4,2663.0,3.0]
[1739473798543,3.75438,2663.6,2663.0,3.0]
[1739473798889,7.50882,2663.6,2663.0,6.75516]
[1739473799185,3.75463,2663.4,2663.0,3.0]
[1739473799387,3.75474,2663.3,2662.8,6.75543]
[1739473799536,3.75474,2663.3,2662.8,3.0]
[1739473799737,3.75527,2663.0,2662.6,0.7765]
[1739473799957,3.75513,2663.1,2662.6,3.7557]
[1739473800256,2.263,2663.3,2662.7,3.02752464]
[1739473800410,0.305,2663.2,2663.1,3.75499]
[1739473800765,5.63450335,2664.5,2663.1,0.02751247]
[1739473800964,3.75405,2663.8,2663.3,3.7547]
[1739473801209,0.09099426,2663.7,2663.1,3.75493]
[1739473801618,0.09099426,2663.7,2662.9,0.7828]
[1739473801785,0.305,2663.9,2663.8,3.75401]
[1739473801980,0.39291416,2663.9,2663.8,3.75401]
[1739473802186,0.08791416,2663.9,2663.8,3.75401]
[1739473802384,0.305,2664.2,2663.5,0.7519]
[1739473802598,3.75379,2664.0,2663.5,0.7519]
[1739473802928,3.84224928,2663.9,2663.5,0.7519]
[1739473803089,3.84217928,2663.9,2663.2,3.75481]
[1739473803269,0.08827928,2663.9,2663.2,0.7726]
[1739473803911,0.08827928,2663.9,2663.5,3.75436]
[1739473804124,0.305,2664.2,2663.5,3.75436]
[1739473804425,0.04692331,2664.1,2663.2,1.525373]
[1739473804571,3.75413,2663.8,2663.2,4.52734]
[1739473804775,3.84252366,2663.7,2663.2,4.52734]
[1739473805167,0.08824366,2663.7,2663.3,3.75462]
[1739473805368,0.0075,2664.1,2663.3,3.75474]
[1739473805570,0.08824366,2664.0,2663.7,3.75404]
[1739473805803,0.08824366,2664.0,2663.8,3.75403]
[1739473805804,0.305,2663.9,2663.8,3.75403]
[1739473806387,0.305,2663.9,2663.8,4.51023]
[1739473807965,0.39340392,2663.9,2663.8,4.51023]
[1739473808697,0.305,2663.9,2663.8,3.75403]
[1739473809288,0.39340392,2663.9,2663.8,3.75403]
[1739473810591,0.305,2663.9,2663.8,3.75403]
[1739473810814,0.39340392,2663.9,2663.8,3.75403]
[1739473814015,0.39411621,2663.9,2663.8,3.75403]
[1739473814834,0.08911621,2663.9,2663.8,8.7600358]
[1739473815139,0.0075,2664.8,2663.8,9.50555278]
[1739473815378,0.304,2664.6,2663.8,9.50555278]
[1739473815543,0.08933876,2664.5,2664.4,3.75309]
[1739473815727,2.567,2664.7,2664.3,3.75332]
[1739473815934,10.07273,2664.7,2664.2,3.75346]
[1739473816133,3.84231997,2664.6,2664.2,3.75346]
[1739473816328,3.84231997,2664.6,2664.1,3.7536]
[1739473816553,2.263,2664.4,2663.7,3.75408]
[1739473816777,6.0164,2664.3,2663.7,3.75408]
[1739473816975,2.263,2664.3,2663.9,3.75384]
[1739473817163,0.08940997,2664.2,2663.9,3.75384]
[1739473817357,2.263,2664.3,2663.9,3.75384]
[1739473817559,0.08940997,2664.2,2663.9,3.75382]
[1739473817762,3.239946,2664.3,2663.9,3.75382]
[1739473817937,0.08940997,2664.2,2663.7,3.75408]
[1739473818136,0.08940997,2664.2,2663.9,3.75388]
[1739473818382,6.993386,2664.3,2663.9,3.75388]
[1739473818781,0.08940997,2664.2,2663.9,3.75388]
[1739473819104,6.993386,2664.3,2663.9,3.75388]
[1739473819309,0.08940997,2664.1,2663.9,3.75388]
[1739473819506,6.993296,2664.3,2663.5,5.01530278]
[1739473819809,6.993296,2664.3,2663.8,3.75403]
[1739473819978,0.08940997,2664.2,2663.8,3.75403]
[1739473820378,6.993296,2664.3,2663.8,3.75403]
[1739473820594,0.08940997,2664.2,2663.8,7.50799]
[1739473820797,6.993296,2664.3,2663.9,3.75388]
[1739473820968,0.08940997,2664.2,2663.9,3.75388]
[1739473821305,3.75348,2664.2,2663.7,3.75407]
[1739473821467,0.08940997,2664.1,2663.8,3.75395]
[1739473821661,0.08940997,2664.1,2663.8,7.50791]
[1739473821866,3.239946,2664.3,2663.9,3.7538]
[1739473822182,3.239946,2664.3,2663.5,5.01530278]
[1739473822378,2.263,2664.6,2663.8,3.754]
[1739473822698,0.301,2664.6,2664.5,3.75293]
[1739473822878,0.301,2664.7,2664.6,3.75286]
[1739473823304,0.0075,2665.5,2664.1,5.05240278]
[1739473823517,2.263,2665.3,2664.4,4.22770278]
[1739473823814,2.263,2665.1,2664.8,3.75256]
[1739473824127,2.263,2665.1,2664.6,3.75278]
[1739473824284,3.75296,2664.6,2663.8,4.22770278]
[1739473824618,3.75298,2664.6,2663.9,3.75387]
[1739473824765,3.75298,2664.6,2664.1,7.50699]
[1739473825110,3.75298,2664.6,2663.9,4.63321728]
[1739473825341,3.75325,2664.4,2663.9,3.75379]
[1739473825512,7.50657,2664.4,2663.9,3.75379]
[1739473825665,3.75306,2664.5,2664.1,3.75359]
[1739473825865,3.75291,2664.6,2664.1,3.75359]
[1739473826316,3.75291,2664.6,2664.1,7.50711]
[1739473826719,0.0075,2665.0,2663.8,4.44398669]
[1739473826720,2.2705,2665.0,2663.8,4.44398669]
[1739473826873,3.75297,2664.6,2664.1,3.75352]
[1739473827214,3.75297,2664.6,2664.2,3.75346]
[1739473827368,3.75297,2664.6,2664.1,3.75357]
[1739473828090,2.263,2664.7,2664.0,3.75364]
[1739473828091,0.301,2664.5,2664.2,3.75344]
[1739473828266,4.05413,2664.5,2664.0,3.75364]
[1739473828786,4.05413,2664.5,2664.1,3.75357]
[1739473829511,0.301,2664.5,2664.1,3.75357]
[1739473830034,4.05405,2664.5,2664.0,3.75364]
[1739473830170,3.75336,2664.3,2663.8,8.19795669]
[1739473831292,3.75319,2664.4,2663.9,3.75376]
[1739473831544,3.75319,2664.4,2664.0,3.75372]
[1739473832524,7.324051,2664.5,2664.0,3.75372]
[1739473832713,7.324051,2664.5,2663.9,3.75376]
[1739473832714,3.75332,2664.4,2663.9,3.75376]
[1739473832909,3.88364945,2664.4,2663.9,3.75376]
[1739473833750,0.13039945,2664.4,2664.0,3.75373]
[1739473833908,0.13039945,2664.4,2663.8,8.19795669]
[1739473833909,3.75339,2664.3,2663.8,8.19795669]
[1739473834326,0.13047063,2664.2,2663.8,8.19795669]
[1739473834624,3.75339,2664.3,2663.8,7.38525669]
[1739473834823,0.13047063,2664.1,2663.8,7.38525669]
[1739473835068,3.75339,2664.3,2663.8,7.38528669]
[1739473835264,0.13047063,2664.0,2663.7,3.75417]
[1739473835568,3.75362,2664.1,2663.7,3.75417]
[1739473835774,0.13047063,2663.9,2663.7,3.75417]
[1739473835925,2.9954381,2664.3,2663.7,3.75407]
[1739473836130,0.13047063,2663.8,2663.7,3.75407]
[1739473836359,3.75356,2664.2,2663.7,3.75407]
[1739473836557,0.13047063,2663.8,2663.7,3.75407]
[1739473836732,1.05022781,2664.2,2663.9,3.75382]
[1739473837127,1.05022781,2664.2,2663.7,3.75408]
[1739473837321,6.01668,2664.1,2663.5,0.7892]
[1739473837673,6.01668,2664.1,2663.2,3.63128669]
[1739473837674,2.263,2664.0,2663.2,0.7859]
[1739473837825,2.263,2663.8,2663.0,3.75516]
[1739473838025,2.263,2663.5,2662.6,5.23484869]
[1739473838271,2.263,2663.5,2663.3,3.75474]
[1739473838272,0.298,2663.4,2663.3,3.75474]
[1739473838477,0.298,2663.4,2663.1,7.50987]
[1739473838794,0.298,2663.3,2663.2,3.75481]
[1739473839085,0.298,2663.4,2663.3,3.75474]
[1739473839227,0.76714305,2664.2,2663.2,8.92952769]
[1739473839434,0.298,2664.1,2664.0,3.75375]
[1739473839763,0.298,2664.6,2664.4,3.75317]
[1739473840121,0.298,2664.6,2663.8,7.38524669]
[1739473840377,3.75321,2664.4,2663.9,4.49236467]
[1739473840538,6.31399,2664.6,2663.9,4.49236467]
[1739473840757,2.561,2664.6,2664.1,3.75351]
[1739473841076,2.0075,2665.2,2664.1,3.63128669]
[1739473841286,2.0075,2665.2,2664.6,3.75286]
[1739473841287,4.05021,2665.1,2664.6,3.75286]
[1739473841434,3.75262,2664.8,2664.2,4.55997]
[1739473841656,4.127892,2664.8,2664.0,3.75368]
[1739473842000,3.75282,2664.7,2664.1,3.75361]
[1739473842161,3.75294,2664.6,2664.1,3.75361]
[1739473842501,2.263,2664.7,2663.9,0.7628]
[1739473842650,3.75246,2665.0,2664.4,3.75306]
[1739473842851,0.299,2664.9,2664.4,3.75306]
[1739473843048,2.263,2665.4,2664.6,0.7536]
[1739473843306,0.11659938,2665.7,2665.2,3.75193]
[1739473843463,0.299,2665.6,2665.2,3.75193]
[1739473843665,4.05051,2665.6,2665.0,3.75225]
[1739473843853,0.71571094,2665.6,2665.1,3.75215]
[1739473844047,0.71571094,2665.6,2664.8,3.63128669]
[1739473844254,0.71571094,2665.6,2664.6,0.7536]
[1739473844255,3.75216,2665.2,2664.6,0.7536]
[1739473844689,6.01478,2665.4,2664.6,0.7536]
[1739473845063,6.01478,2665.4,2664.7,3.75266]
[1739473845270,6.01478,2665.4,2664.9,3.75238]
[1739473845271,2.263,2665.4,2664.9,3.75238]
[1739473845469,6.01472,2665.5,2664.9,3.75238]
[1739473845668,3.75179,2665.4,2664.7,7.38396669]
[1739473845902,0.299,2665.3,2664.7,7.38395669]
[1739473846375,0.299,2665.3,2664.9,3.75247]
[1739473846704,0.299,2665.3,2665.0,3.75224]
[1739473847187,0.299,2665.3,2665.1,3.75217]
[1739473848101,3.75158,2665.6,2665.1,3.75217]
[1739473848102,0.13225014,2665.2,2665.1,4.54957]
[1739473848304,0.13225014,2665.2,2665.1,5.74288867]
[1739473848462,0.298,2665.6,2665.1,1.99071867]
[1739473848857,0.13233019,2665.5,2665.1,5.74290867]
[1739473849067,3.75179,2665.4,2665.1,0.7974]
[1739473849277,3.75192,2665.3,2664.8,0.7976]
[1739473849478,3.75242,2665.0,2664.8,0.7976]
[1739473849714,0.13262368,2665.3,2664.5,0.7976]
[1739473850009,3.75244,2665.0,2664.5,0.7976]
[1739473850218,3.75269,2664.8,2664.5,0.7976]
[1739473850381,0.34490827,2664.7,2663.8,6.41950518]
[1739473850567,3.75349,2664.2,2663.8,3.58581849]
[1739473850910,0.13229461,2664.1,2663.8,2.78821849]
[1739473851264,3.75335,2664.3,2663.8,2.78821849]
[1739473851463,0.13172519,2664.0,2663.8,2.78821849]
[1739473851664,3.75335,2664.3,2663.8,2.78821849]
[1739473851910,0.13172519,2663.9,2663.8,2.78821849]
[1739473852112,3.75363,2664.1,2663.8,2.78821849]
[1739473852324,0.13172519,2663.9,2663.8,2.78821849]
[1739473853301,3.75363,2664.1,2663.8,2.78821849]
[1739473853607,3.75389,2663.9,2663.8,2.78821849]
[1739473853908,0.13172519,2663.9,2663.3,3.75472]
[1739473854080,0.13172519,2663.9,2663.2,0.8009]
[1739473854287,7.63968519,2663.9,2663.3,3.75461]
[1739473854502,3.75403,2663.8,2663.3,3.75461]
[1739473854816,0.298,2663.7,2663.3,4.585656]
[1739473855107,4.05225,2663.7,2663.3,0.831046]
[1739473855308,0.13172519,2663.6,2663.2,0.8009]
[1739473855671,0.13172519,2663.6,2663.2,3.75486]
[1739473855866,0.13172519,2663.6,2663.1,3.75492]
[1739473856615,0.13172519,2663.6,2663.3,3.75472]
[1739473857116,0.13172519,2663.6,2663.1,3.75492]
[1739473857316,0.13172519,2663.6,2662.7,3.75555]
[1739473857317,3.75457,2663.5,2662.7,3.75555]
[1739473857621,3.7548,2663.3,2662.8,3.75542]
[1739473857914,0.0075,2663.5,2662.5,3.75579]
[1739473858121,3.75524,2663.0,2662.4,4.55569]
[1739473858421,3.75524,2663.0,2662.5,3.75583]
[1739473858598,3.88461323,2662.9,2662.4,4.55569]
[1739473858803,0.297,2662.8,2662.5,3.75579]
[1739473859108,0.297,2662.8,2662.1,3.8085]
[1739473859320,0.12931323,2662.7,2662.5,3.75579]
[1739473859607,0.297,2662.8,2662.5,3.75579]
[1739473859805,0.12931323,2662.7,2662.5,3.75579]
[1739473860214,0.297,2662.8,2662.5,3.75579]
[1739473860706,0.12931323,2662.7,2662.5,3.75578]
[1739473860902,0.12931323,2662.7,2662.6,7.58294988]
[1739473861137,0.297,2663.0,2662.8,3.75543]
[1739473861307,0.297,2663.0,2662.5,4.131418]
[1739473861501,4.05224,2663.0,2662.5,4.131418]
[1739473861849,0.12894801,2662.9,2662.5,4.131418]
[1739473862045,0.12894801,2662.9,2662.3,0.7997]
[1739473862257,3.75555,2662.8,2662.3,0.7997]
[1739473862401,0.12894801,2662.9,2662.1,3.75636]
[1739473862599,0.12894801,2662.9,2662.1,3.0]
[1739473862801,3.75567,2662.7,2662.1,6.7563]
[1739473863054,3.88476928,2662.6,2662.1,3.0]
[1739473863251,3.75594,2662.5,2662.1,3.0]
[1739473863608,3.75549,2662.8,2662.2,3.75615]
[1739473863805,0.12901928,2662.7,2662.2,3.75615]
[1739473864057,3.88461928,2662.7,2662.2,3.75615]
[1739473864423,0.12901928,2662.7,2662.0,3.8284]
[1739473864627,0.12901928,2662.7,2662.3,3.75612]
[1739473864855,0.12901928,2662.7,2662.2,3.75618]
[1739473864856,3.75569,2662.7,2662.1,3.7564]
[1739473865043,0.12901928,2662.6,2662.2,3.75621]
[1739473865242,0.12901928,2662.6,2662.3,3.75605]
[1739473865441,3.7554,2662.9,2662.3,3.75605]
[1739473865668,3.88452928,2662.8,2662.3,3.75605]
[1739473865873,3.88452928,2662.8,2662.4,3.75598]
[1739473865874,0.12901928,2662.8,2662.4,3.75598]
[1739473866058,0.12901928,2662.8,2662.3,3.75605]
[1739473866269,3.88453928,2662.8,2662.3,3.75605]
[1739473866590,0.12901928,2662.8,2662.7,4.53788]
[1739473866730,0.12901928,2662.8,2662.7,11.76452099]
[1739473866932,0.297,2663.4,2662.7,5.00894099]
[1739473867173,4.05161,2663.4,2662.9,3.75523]
[1739473867336,3.7549,2663.2,2662.7,4.53777]
[1739473867729,3.7549,2663.2,2662.6,6.75561]
[1739473867929,0.12308066,2663.1,2662.7,3.75556]
[1739473868180,0.12308066,2663.1,2662.5,3.75577]
[1739473868385,3.87812066,2663.1,2662.6,3.7556]
[1739473868545,0.12308066,2663.1,2662.5,3.75577]
[1739473868884,0.12308066,2663.1,2662.7,3.75552]
[1739473869269,0.12308066,2663.1,2663.0,3.75516]
[1739473869586,0.297,2663.3,2663.1,7.50989]
[1739473869765,0.297,2663.5,2663.1,3.75491]
[1739473869973,0.297,2663.5,2663.0,0.7834]
[1739473869974,0.297,2663.6,2663.4,3.75449]
[1739473870149,0.297,2663.6,2663.0,0.7834]
[1739473870351,0.297,2663.6,2663.2,3.7548]
[1739473870547,0.297,2663.6,2663.3,3.75471]
[1739473870773,0.297,2663.6,2663.2,3.7548]
[1739473871351,0.297,2663.6,2663.5,3.75445]
[1739473872109,2.2645,2664.2,2663.2,4.20862]
[1739473872110,0.297,2663.8,2663.2,4.20862]
[1739473872247,0.297,2663.8,2663.2,0.45382]
[1739473872763,0.0075,2664.1,2663.5,3.75436]